[Event "GCT Superbet Blitz Poland 2025"]
[Site "Warsaw"]
[Date "2025.04.29"]
[Round "7"]
[White "Topalov, Veselin"]
[Black "Praggnanandhaa R"]
[Result "0-1"]
[ECO "A05"]
[WhiteElo "2717"]
[BlackElo "2758"]
[Annotator "TA"]
[PlyCount "72"]
[EventDate "2025.??.??"]
[EventType "blitz"]
[TimeControl "300+2"]

{[%evp 9,72,0,6,0,6,-8,-12,-9,6,7,0,0,40,10,8,10,6,9,22,17,16,10,21,0,7,22,16,12,28,0,5,9,18,18,0,6,14,0,0,0,0,0,35,-59,-72,-58,147,163,162,-425,-425,-408,-417,-692,-610,-733,-703,-1104,-1128,-1258,-1205,-2200,-2024,-1814,-1779]} 1. Nf3 {[%emt 0:00:01]} Nf6 {[%emt 0:00:01]} 2. e3 {[%emt 0:00:01]} g6 {[%emt 0:00:02]} 3. b4 {[%emt 0:00:01]} Bg7 {[%emt 0:00:02]} 4. Bb2 {[%emt 0:00:02]} O-O {[%emt 0:00:02]} 5. Be2 {[%emt 0:00:02]} d6 {[%emt 0:00:06]} 6. O-O {[%emt 0:00:07] A05: Réti Opening: 1 Nf3 Nf6.} e5 {[%emt 0:00:02]} 7. d3 {[%emt 0:00:05]} ({RR} 7. d4 exd4 8. Qxd4 Nh5 9. Qd2 Bxb2 10. Nc3 Bxa1 11. Rxa1 Nf6 12. h3 Nc6 13. b5 Ne5 14. Nd4 c5 15. bxc6 Nxc6 16. Ndb5 d5 17. Bf3 a6 18. Nd4 Nxd4 19. Qxd4 Be6 20. Rd1 Rc8 21. Ne2 Rc4 {Scheglov,G (2318)-Levitan,C (2327) chess.com INT 2025 0-1 (35)}) 7... a5 {[%emt 0:00:04]} ({RR} 7... b6 8. c4 Bb7 9. Nc3 Nbd7 10. Nd2 c6 11. Bf3 d5 12. Qb3 dxc4 13. Nxc4 Qb8 14. a4 Rd8 15. Ne4 Nxe4 16. Bxe4 Kh8 17. f4 f5 18. fxe5 Nxe5 19. Nxe5 Bxe5 20. Bxf5 c5 21. Be6 Qd6 22. bxc5 {Aleksandrov,A (2571)-Socko,B (2625) Abu Dhabi 2019 1-0 (41)}) 8. b5 {[%emt 0:00:01] The position is equal.} Nfd7 $146 {[%emt 0:00:01]} (8... a4 9. c4 Nbd7 10. a3 Nc5 11. Nbd2 Re8 12. e4 Nh5 13. g3 Bh3 14. Re1 h6 {0-1 Spata,G (2290)-Siva,M (2349) Titled Tuesday intern op 22nd June blitz 2021 (11)}) ({RR} 8... a4 9. c4 Nbd7 10. a3 Nc5 11. Nbd2 Re8 12. e4 Nh5 13. g3 Bh3 14. Re1 h6 15. Bc3 Qd7 16. Bb4 b6 17. Nh4 Nf6 18. Ng2 Ne6 19. Bc3 Nh7 20. Nh4 h5 21. Nf1 Bf6 22. Ng2 Bg5 23. Nfe3 {Spata,G (2290)-Siva,M (2349) Chess.com INT 2021 0-1 (32)}) ({RR} 8... a4 9. c4 Nbd7 10. a3 Nc5 11. Nbd2 Re8 12. e4 Nh5 13. g3 Bh3 14. Re1 h6 15. Bc3 Qd7 16. Bb4 b6 17. Nh4 Nf6 18. Ng2 Ne6 19. Bc3 Nh7 20. Nh4 h5 21. Nf1 Bf6 22. Ng2 Bg5 23. Nfe3 {Spata,G (2290)-Siva,M (2349) Chess.com INT 2021 0-1 (32)}) ({RR} 8... Re8 9. a4 Nbd7 10. Nbd2 d5 11. d4 exd4 12. Bxd4 Qe7 13. c4 Nc5 14. Rc1 b6 15. cxd5 Nxd5 16. Bc4 Bb7 17. Bxd5 Bxd5 18. Bxc5 bxc5 19. Qc2 Bf8 20. Rfd1 c6 21. b6 Reb8 22. e4 Be6 23. Nb3 {Heyken,E (2415)-Ristic,N (2415) Germany 1990 0-1 (58)}) 9. d4 {[%emt 0:00:12]} exd4 {[%emt 0:00:20]} 10. Bxd4 {[%emt 0:00:03]} Bxd4 {[%emt 0:00:23]} 11. Nxd4 {[%emt 0:00:09]} Nc5 {[%emt 0:00:07]} 12. c4 {[%emt 0:00:01]} Nbd7 {[%emt 0:00:09]} 13. Nc3 {[%emt 0:00:10]} Re8 {[%emt 0:00:05]} 14. Rc1 {[%emt 0:00:14]} Nf6 {[%emt 0:00:14]} 15. Bf3 {[%emt 0:00:11]} a4 {[%emt 0:00:39]} 16. Rb1 {[%emt 0:00:35]} Be6 {[%emt 0:00:24]} 17. Rb4 {[%emt 0:00:07]} a3 {[%emt 0:00:04]} 18. h3 {[%emt 0:00:45]} Nfd7 {[%emt 0:00:04]} 19. Qc2 {[%emt 0:00:21]} Qh4 {[%emt 0:00:49]} 20. Nd5 {[%emt 0:00:47]} Rac8 {[%emt 0:00:22]} 21. Nf4 {[%emt 0:00:23]} Ne5 {[%emt 0:00:01]} 22. Be2 {[%emt 0:00:01]} Bd7 {[%emt 0:00:27]} 23. Rd1 {[%emt 0:00:02]} (23. Nf3 {simplifies} Qd8 24. Qc1 Nxf3+ 25. Bxf3 Ra8 26. Nd5) 23... c6 {[%emt 0:00:08]} 24. bxc6 {[%emt 0:00:05]} bxc6 {[%emt 0:00:01]} 25. Qb1 {[%emt 0:00:13]} g5 {[%emt 0:00:30]} 26. g3 {[%emt 0:00:21]} ({White has to play} 26. Nh5 $14 g4 27. Ng3 gxh3 28. Ndf5 Bxf5 29. Qxf5) 26... Qh6 $15 {[%emt 0:00:02]} 27. Nh5 {[%emt 0:00:01]} g4 $2 {[%emt 0:00:22]} (27... Bxh3 $15 28. Nf5 Bxf5 29. Qxf5 Ned7) 28. hxg4 $16 {[%emt 0:00:16]} Nxg4 {[%emt 0:00:02] [#]} 29. Bxg4 {[%emt 0:00:22][%mdl 8192]} (29. Nf5 $1 $18 {[%cal Rf5h6] was the only winning move.} Qxh5 30. Bxg4 (30. Nxd6 $2 {leads to mate.} Qh2+ 31. Kf1 Qxf2#)) 29... Bxg4 $19 {[%emt 0:00:02]} 30. Nf4 {[%emt 0:00:00] [#]} Ne4 $1 {[%emt 0:00:13][%cal Oc6c5] and ...c5! should not be overlooked} 31. Rb6 {[%emt 0:00:18]} (31. f3 $142 Nc3 (31... Nxg3 $2 32. Kg2 $19) 32. fxg4 Nxb1 33. Nf5) 31... Nc3 {[%emt 0:00:06] Black is clearly winning.} 32. Qc2 {[%emt 0:00:04]} Nxd1 {[%emt 0:00:01]} 33. Nf5 {[%emt 0:00:01]} Qf6 {[%emt 0:00:03]} 34. Nd4 {[%emt 0:00:03] [#]} Nxe3 $1 {[%emt 0:00:04]} 35. fxe3 {[%emt 0:00:01]} (35. Qc3 Nf5) 35... Rxe3 {[%emt 0:00:01]} 36. Qf2 {[%emt 0:00:02]} Qxd4 {[%emt 0:00:02] Weighted Error Value: White=0.90/Black=0.19 (very precise) Missed win: 	White=1 	--- Mistake: 	White=2 	Black=1 Inaccurate: 	White=2 	Black=2 OK: 	White=10 	Black=6 Best: 	White=1 	Black=2 Strong: 	--- 	Black=1} 0-1

[Event "GCT Superbet Blitz Poland 2025"]
[Site "Warsaw"]
[Date "2025.04.29"]
[Round "8"]
[White "Firouzja, Alireza"]
[Black "Vachier-Lagrave, Maxime"]
[Result "0-1"]
[ECO "B90"]
[WhiteElo "2757"]
[BlackElo "2722"]
[Annotator "ChessBase"]
[PlyCount "90"]
[EventDate "2025.??.??"]
[EventType "blitz"]
[TimeControl "300+2"]

1. e4 {[%emt 0:00:00]} c5 {[%emt 0:00:02]} 2. Nf3 {[%emt 0:00:01]} d6 {[%emt 0:00:01]} 3. d4 {[%emt 0:00:01]} cxd4 {[%emt 0:00:00]} 4. Nxd4 {[%emt 0:00:01]} Nf6 {[%emt 0:00:01]} 5. Nc3 {[%emt 0:00:01]} a6 {[%emt 0:00:01]} 6. f3 {[%emt 0:00:01]} e5 {[%emt 0:00:05]} 7. Nb3 {[%emt 0:00:01]} Be6 {[%emt 0:00:01]} 8. Be3 {[%emt 0:00:01]} Nbd7 {[%emt 0:00:04]} 9. g4 {[%emt 0:00:02]} h6 {[%emt 0:00:01]} 10. Qd2 {[%emt 0:00:07]} b5 {[%emt 0:00:03]} 11. O-O-O {[%emt 0:00:10]} Nb6 {[%emt 0:00:03]} 12. Qf2 {[%emt 0:00:10]} Rb8 {[%emt 0:00:01]} 13. Nc5 {[%emt 0:00:29]} b4 {[%emt 0:00:02]} 14. Nxe6 {[%emt 0:00:14]} fxe6 {[%emt 0:00:01]} 15. Nb1 {[%emt 0:00:07]} d5 {[%emt 0:00:04]} 16. exd5 {[%emt 0:00:17]} Nbxd5 {[%emt 0:00:02]} 17. Bd3 $146 {[%emt 0:00:22]} ({RR} 17. Nd2 Qc7 18. Bd3 Be7 19. Bg6+ Kf8 20. Kb1 Nxe3 21. Qxe3 Nd5 22. Qe4 Bf6 23. Qc4 Qxc4 24. Nxc4 Ke7 25. Rhe1 Rb5 26. Be4 Rd8 27. Rd3 Rc5 28. Nd2 Rcc8 29. a3 a5 30. axb4 axb4 31. Nb3 Nf4 {Dominguez Perez,L (2756)-Shankland,S (2709) Saint Louis 2022 1-0 (59)}) ({RR} 17. Nd2 Qc7 18. Bd3 Be7 19. Bg6+ Kf8 20. Kb1 Nxe3 21. Qxe3 Nd5 22. Qe4 Bf6 23. Qc4 Qxc4 24. Nxc4 Ke7 25. Rhe1 Rb5 26. Be4 Rd8 27. Rd3 Rc5 28. Nd2 Rcc8 29. a3 a5 30. axb4 axb4 31. Nb3 Nf4 {Dominguez Perez,L (2756)-Shankland,S (2709) Saint Louis 2022 1-0 (59)}) 17... Bd6 {[%emt 0:00:26]} 18. Bg6+ {[%emt 0:00:05]} Ke7 {[%emt 0:00:01]} 19. Nd2 {[%emt 0:00:47]} Qa5 {[%emt 0:00:23]} 20. Kb1 {[%emt 0:00:11]} Rhc8 {[%emt 0:00:02]} 21. Nb3 {[%emt 0:00:12]} Qc7 {[%emt 0:00:07]} 22. g5 {[%emt 0:00:16]} hxg5 {[%emt 0:00:02]} 23. Bxg5 {[%emt 0:00:01]} a5 {[%emt 0:00:09]} 24. Rxd5 {[%emt 0:01:09]} exd5 {[%emt 0:00:02]} 25. Re1 {[%emt 0:00:02]} a4 {[%emt 0:00:32]} 26. Nd4 {[%emt 0:00:01]} b3 {[%emt 0:00:01]} 27. cxb3 {[%emt 0:00:20]} axb3 {[%emt 0:00:01]} 28. a3 {[%emt 0:00:07]} Bc5 {[%emt 0:01:33]} 29. Bf4 {[%emt 0:00:25]} Bd6 {[%emt 0:00:26]} 30. Nf5+ {[%emt 0:00:05]} Kf8 {[%emt 0:00:08]} 31. Nxd6 {[%emt 0:00:01]} exf4 {[%emt 0:00:11]} 32. Nxc8 {[%emt 0:00:01]} Rxc8 {[%emt 0:00:01]} 33. Qd4 {[%emt 0:00:05]} Kg8 {[%emt 0:00:13]} 34. Qb4 {[%emt 0:00:11]} Rb8 {[%emt 0:00:27]} 35. Qe7 {[%emt 0:00:01]} Qxe7 {[%emt 0:00:06]} 36. Rxe7 {[%emt 0:00:01]} Kf8 {[%emt 0:00:01]} 37. Rc7 {[%emt 0:00:07]} Rb6 {[%emt 0:00:08]} 38. Kc1 {[%emt 0:00:01]} d4 {[%emt 0:00:08]} 39. Kd2 {[%emt 0:00:02]} Nd5 {[%emt 0:00:01]} 40. Rc8+ {[%emt 0:00:02]} Ke7 {[%emt 0:00:01]} 41. Be4 {[%emt 0:00:01]} Ne3 {[%emt 0:00:02]} 42. a4 {[%emt 0:00:04]} Rb4 {[%emt 0:00:03]} 43. Bc6 {[%emt 0:00:02]} Nc4+ {[%emt 0:00:01]} 44. Kc1 {[%emt 0:00:02]} Nb6 {[%emt 0:00:10]} 45. Rc7+ {[%emt 0:00:02]} Kd6 {[%emt 0:00:01]} 0-1

[Event "GCT Superbet Blitz Poland 2025"]
[Site "Warsaw"]
[Date "2025.04.29"]
[Round "8"]
[White "Aravindh, Chithambaram VR."]
[Black "Praggnanandhaa R"]
[Result "0-1"]
[ECO "A15"]
[WhiteElo "2749"]
[BlackElo "2758"]
[Annotator "ChessBase"]
[PlyCount "100"]
[EventDate "2025.??.??"]
[EventType "blitz"]
[TimeControl "300+2"]

1. Nf3 {[%emt 0:00:02]} Nf6 {[%emt 0:00:01]} 2. b3 {[%emt 0:00:01]} g6 {[%emt 0:00:06]} 3. Bb2 {[%emt 0:00:02]} Bg7 {[%emt 0:00:01]} 4. g3 {[%emt 0:00:02]} d6 {[%emt 0:00:05]} 5. Bg2 {[%emt 0:00:05]} e5 {[%emt 0:00:01]} 6. d3 {[%emt 0:00:07]} O-O {[%emt 0:00:04]} 7. c4 {[%emt 0:00:02]} Nc6 {[%emt 0:00:18]} 8. O-O {[%emt 0:00:03]} h6 {[%emt 0:00:01]} 9. Nc3 {[%emt 0:00:05]} Be6 {[%emt 0:00:25]} 10. d4 {[%emt 0:00:37]} Bg4 {[%emt 0:00:31]} ({RR} 10... exd4 11. Nxd4 Bd7 12. Nd5 Nxd5 13. cxd5 Nxd4 14. Bxd4 Re8 15. e3 a5 16. Rc1 Be5 17. Qd2 b6 18. Bxe5 Rxe5 19. Rc3 Rc8 20. Rfc1 Bf5 21. Qd4 h5 22. h4 Re7 23. Qf6 Qf8 24. Bf3 Bg4 25. Bxg4 {Bacrot,E (2720)-Al Modiahki,M (2549) Dubai 2014 1-0 (48)}) 11. dxe5 {[%emt 0:00:19]} dxe5 {[%emt 0:00:04]} 12. Nd5 $146 {[%emt 0:00:06]} ({RR} 12. h3 Be6 13. Nb5 Nd7 14. Nd2 a6 15. Nc3 Qc8 16. Kh2 Ne7 17. e3 f5 18. Qe2 g5 19. Rad1 Nf6 20. Na4 Nd7 21. b4 Rb8 22. Nc3 Qe8 23. Nb3 e4 24. Nd4 Bf7 25. Rd2 Ne5 26. Nd5 Nxd5 {Gomes,A (1416)-Silva,G (1790) Florianopolis BRA 2024 0-1 (37)}) ({RR} 12. h3 Be6 13. Nb5 Nd7 14. Nd2 a6 15. Nc3 Qc8 16. Kh2 Ne7 17. e3 f5 18. Qe2 g5 19. Rad1 Nf6 20. Na4 Nd7 21. b4 Rb8 22. Nc3 Qe8 23. Nb3 e4 24. Nd4 Bf7 25. Rd2 Ne5 26. Nd5 Nxd5 {Gomes,A (1416)-Silva,G (1790) Florianopolis BRA 2024 0-1 (37)}) ({RR} 12. h3 Be6 13. Qxd8 Rfxd8 14. Rfd1 a6 15. Ne1 Rab8 16. Nd3 Nd7 17. Na4 Bf8 18. Bxc6 bxc6 19. Nxe5 Nxe5 20. Bxe5 Rxd1+ 21. Rxd1 Re8 22. Bxc7 Bxh3 23. Rd8 Rxd8 24. Bxd8 Bf5 25. Ba5 Ba3 26. Bd2 h5 {Stoeckl,E-Watzka,H (2325) Austria 1993 ½-½ (37)}) 12... Re8 {[%emt 0:00:34]} 13. Re1 {[%emt 0:00:26]} Be6 {[%emt 0:01:34]} 14. e4 {[%emt 0:00:31]} Bg4 {[%emt 0:00:03]} 15. h3 {[%emt 0:00:12]} Bxf3 {[%emt 0:00:01]} 16. Qxf3 {[%emt 0:00:02]} Nd7 {[%emt 0:00:06]} 17. Rad1 {[%emt 0:00:25]} a5 {[%emt 0:00:14]} 18. h4 {[%emt 0:01:01]} Nd4 {[%emt 0:00:16]} 19. Bxd4 {[%emt 0:00:08]} exd4 {[%emt 0:00:01]} 20. Nf4 {[%emt 0:00:16]} Ne5 {[%emt 0:00:21]} 21. Qe2 {[%emt 0:00:01]} a4 {[%emt 0:00:01]} 22. b4 {[%emt 0:00:03]} a3 {[%emt 0:00:14]} 23. c5 {[%emt 0:00:10]} c6 {[%emt 0:00:08]} 24. Qc2 {[%emt 0:00:12]} h5 {[%emt 0:00:11]} 25. Nd3 {[%emt 0:00:05]} Ng4 {[%emt 0:00:14]} 26. Bh3 {[%emt 0:00:14]} b6 {[%emt 0:00:08]} 27. Bxg4 {[%emt 0:00:18]} hxg4 {[%emt 0:00:01]} 28. cxb6 {[%emt 0:00:10]} Qxb6 {[%emt 0:00:01]} 29. e5 {[%emt 0:00:01]} Qb5 {[%emt 0:00:05]} 30. Rc1 {[%emt 0:00:09]} Bxe5 {[%emt 0:00:07]} 31. Qxc6 {[%emt 0:00:06]} Qxd3 {[%emt 0:00:02]} 32. Rxe5 {[%emt 0:00:01]} Rxe5 {[%emt 0:00:02]} 33. Qxa8+ {[%emt 0:00:01]} Kg7 {[%emt 0:00:01]} 34. Qc6 {[%emt 0:00:04]} Qd2 {[%emt 0:00:02]} 35. b5 {[%emt 0:00:02]} Rxb5 {[%emt 0:00:02]} 36. Rf1 {[%emt 0:00:02]} Re5 {[%emt 0:00:03]} 37. Qd7 {[%emt 0:00:02]} d3 {[%emt 0:00:03]} 38. Qd4 {[%emt 0:00:02]} Qe2 {[%emt 0:00:01]} 39. Kh2 {[%emt 0:00:02]} Kh7 {[%emt 0:00:02]} 40. Rb1 {[%emt 0:00:02]} Qe4 {[%emt 0:00:03]} 41. Qd8 {[%emt 0:00:02]} Re8 {[%emt 0:00:01]} 42. Qd7 {[%emt 0:00:01]} Kg8 {[%emt 0:00:03]} 43. Rb7 {[%emt 0:00:01]} Rf8 {[%emt 0:00:02]} 44. Rb3 {[%emt 0:00:03]} Qe2 {[%emt 0:00:01]} 45. Qd4 {[%emt 0:00:02]} Qxa2 {[%emt 0:00:03]} 46. Rxd3 {[%emt 0:00:00]} Ra8 {[%emt 0:00:01]} 47. Rd1 {[%emt 0:00:04]} Qb2 {[%emt 0:00:03]} 48. Qe4 {[%emt 0:00:03]} Qxf2+ {[%emt 0:00:01]} 49. Kh1 {[%emt 0:00:01]} Qf3+ {[%emt 0:00:01]} 50. Qxf3 {[%emt 0:00:01]} gxf3 {[%emt 0:00:01]} 0-1

[Event "GCT Superbet Blitz Poland 2025"]
[Site "Warsaw"]
[Date "2025.04.29"]
[Round "8"]
[White "Aronian, Levon"]
[Black "Fedoseev, Vladimir"]
[Result "0-1"]
[ECO "C42"]
[WhiteElo "2747"]
[BlackElo "2739"]
[Annotator "ChessBase"]
[PlyCount "80"]
[EventDate "2025.??.??"]
[EventType "blitz"]
[TimeControl "300+2"]

1. e4 {[%emt 0:00:02]} e5 {[%emt 0:00:01]} 2. Nf3 {[%emt 0:00:01]} Nf6 {[%emt 0:00:02]} 3. Nxe5 {[%emt 0:00:01]} d6 {[%emt 0:00:01]} 4. Nc4 {[%emt 0:00:01]} Nxe4 {[%emt 0:00:04]} 5. Qe2 {[%emt 0:00:01]} Qe7 {[%emt 0:00:04]} 6. Ne3 {[%emt 0:00:02]} Be6 {[%emt 0:00:11]} 7. c4 {[%emt 0:00:01]} Nc6 {[%emt 0:00:26]} 8. Nc3 {[%emt 0:00:01]} Nf6 {[%emt 0:00:30]} 9. Ncd5 {[%emt 0:00:01]} Qd8 {[%emt 0:00:02]} 10. b3 {[%emt 0:00:34]} Be7 {[%emt 0:00:35]} 11. Bb2 {[%emt 0:00:37]} O-O {[%emt 0:00:09]} 12. g3 {[%emt 0:00:01]} Nxd5 {[%emt 0:00:57]} 13. cxd5 {[%emt 0:00:08]} Bf6 {[%emt 0:00:01]} 14. dxc6 {[%emt 0:01:30]} Bxb2 {[%emt 0:00:04]} 15. Rb1 {[%emt 0:00:01]} Bd4 {[%emt 0:00:36]} 16. cxb7 {[%emt 0:00:02]} Rb8 {[%emt 0:00:01]} 17. Bg2 {[%emt 0:00:03]} d5 $146 {[%emt 0:00:12]} ({RR} 17... Qd7 18. O-O d5 19. Qa6 c5 20. Nc2 Bf6 21. d4 cxd4 22. Rbd1 Rxb7 23. Nxd4 Rb6 24. Qd3 Bg4 25. Bf3 Bh3 26. Rfe1 g6 27. Ne2 d4 28. Nf4 Bf5 29. Be4 Bxe4 30. Qxe4 Rd6 31. Nd3 {½-½ (31) Sethuraman,S (2637)-Abasov,N (2627) Astana 2019}) 18. Qb5 {[%emt 0:00:28]} Qd6 {[%emt 0:00:19]} 19. O-O {[%emt 0:01:01]} c5 {[%emt 0:00:28]} 20. Nc2 {[%emt 0:00:16]} a6 {[%emt 0:00:04]} 21. Qd3 {[%emt 0:00:26]} Bf6 {[%emt 0:00:01]} 22. Ne3 {[%emt 0:00:08]} Rfd8 23. f4 Rxb7 {[%emt 0:00:35]} 24. f5 {[%emt 0:00:05]} Bc8 {[%emt 0:00:01]} 25. Nxd5 {[%emt 0:00:10]} Bd4+ {[%emt 0:00:01]} 26. Kh1 {[%emt 0:00:01]} Rbd7 {[%emt 0:00:05]} 27. f6 {[%emt 0:00:07]} gxf6 {[%emt 0:00:13]} 28. Rbe1 {[%emt 0:00:02]} Be5 {[%emt 0:00:04]} 29. Qc4 {[%emt 0:00:02]} Bb7 {[%emt 0:00:02]} 30. Ne3 {[%emt 0:00:01]} Bxg2+ 31. Kxg2 {[%emt 0:00:01]} Qxd2+ {[%emt 0:00:06]} 32. Re2 {[%emt 0:00:00]} Qd4 {[%emt 0:00:02]} 33. Ng4 {[%emt 0:00:06]} Qxc4 {[%emt 0:00:03]} 34. bxc4 {[%emt 0:00:01]} Rd2 {[%emt 0:00:01]} 35. Rxd2 {[%emt 0:00:05]} Rxd2+ {[%emt 0:00:01]} 36. Rf2 {[%emt 0:00:00]} Rd4 {[%emt 0:00:03]} 37. Nxf6+ {[%emt 0:00:01]} Kg7 {[%emt 0:00:01]} 38. Ne8+ {[%emt 0:00:06]} Kg6 {[%emt 0:00:01]} 39. Rb2 {[%emt 0:00:03]} Rd8 {[%emt 0:00:03]} 40. Rb6+ {[%emt 0:00:01]} f6 {[%emt 0:00:01]} 0-1

[Event "GCT Superbet Blitz Poland 2025"]
[Site "Warsaw"]
[Date "2025.04.29"]
[Round "8"]
[White "Deac, Bogdan-Daniel"]
[Black "Duda, Jan-Krzysztof"]
[Result "1-0"]
[ECO "A50"]
[WhiteElo "2668"]
[BlackElo "2739"]
[Annotator "ChessBase"]
[PlyCount "95"]
[EventDate "2025.??.??"]
[EventType "blitz"]
[TimeControl "300+2"]

1. Nf3 {[%emt 0:00:02]} Nf6 {[%emt 0:00:01]} 2. c4 {[%emt 0:00:02]} b6 {[%emt 0:00:05]} 3. d4 {[%emt 0:00:02]} Bb7 {[%emt 0:00:02]} 4. Nc3 {[%emt 0:00:03]} g6 {[%emt 0:00:08]} 5. d5 {[%emt 0:00:19]} Bg7 {[%emt 0:00:05]} 6. e4 {[%emt 0:00:08]} d6 {[%emt 0:00:02]} 7. Bd3 {[%emt 0:00:06]} O-O {[%emt 0:00:06]} 8. O-O {[%emt 0:00:03]} Nbd7 {[%emt 0:00:02]} ({RR} 8... e5 9. Bg5 h6 10. Be3 Nh5 11. Re1 Nf4 12. Bf1 Bc8 13. b4 a5 14. bxa5 Rxa5 15. Nd2 Ra8 16. a4 Nd7 17. Nb3 Nf6 18. f3 Bd7 19. Qd2 Kh7 20. a5 bxa5 21. Nxa5 g5 22. c5 dxc5 23. Nb7 {Jobava,B (2578)-Iliaguev,D (2247) Eforie Nord ROU 2025 1-0 (41)}) 9. Re1 {[%emt 0:00:14]} e6 {[%emt 0:00:08]} 10. Rb1 {[%emt 0:00:09]} ({RR} 10. Bg5 h6 11. Bd2 Re8 12. Qc1 Kh7 13. h3 a5 14. Qc2 Nc5 15. Bf1 Nh5 16. Rad1 Qf6 17. Nh2 exd5 18. Ng4 Qh4 19. Nxd5 Bxd5 20. cxd5 Rxe4 21. Rxe4 Nxe4 22. Qxe4 f5 23. Qc4 fxg4 24. hxg4 Be5 {Aronian,L (2797)-Mamedyarov,S (2765) Beijing 2014 0-1 (128)}) 10... a5 $146 {[%emt 0:00:08]} ({RR} 10... Re8 11. h3 a6 12. Bg5 h6 13. Be3 Nc5 14. Bc2 Ncd7 15. Qd2 Kh7 16. b4 a5 17. a3 axb4 18. axb4 Ne5 19. Nxe5 dxe5 20. Ra1 Rxa1 21. Rxa1 exd5 22. cxd5 c6 23. Ra7 Qc8 24. dxc6 Bxc6 25. Rxf7 {Andreikin,D (2695)-Boros,D (2401) chess.com INT 2024 1-0 (47)}) ({RR} 10... Re8 11. h3 a6 12. Bg5 h6 13. Be3 Nc5 14. Bc2 Ncd7 15. Qd2 Kh7 16. b4 a5 17. a3 axb4 18. axb4 Ne5 19. Nxe5 dxe5 20. Ra1 Rxa1 21. Rxa1 exd5 22. cxd5 c6 23. Ra7 Qc8 24. dxc6 Bxc6 25. Rxf7 {Andreikin,D (2695)-Boros,D (2401) chess.com INT 2024 1-0 (47)}) 11. h3 {[%emt 0:00:19]} Nh5 {[%emt 0:00:03]} 12. Bg5 {[%emt 0:00:14]} Qc8 {[%emt 0:00:13]} 13. Qd2 {[%emt 0:00:39]} Nc5 {[%emt 0:00:16]} 14. Bc2 {[%emt 0:00:29]} Qd7 {[%emt 0:00:21]} 15. b3 {[%emt 0:00:17]} e5 {[%emt 0:00:42]} 16. a3 {[%emt 0:00:16]} a4 {[%emt 0:00:03]} 17. b4 {[%emt 0:00:02]} Nb3 {[%emt 0:00:01]} 18. Qd1 {[%emt 0:00:15]} Nf4 {[%emt 0:00:17]} 19. Bxb3 {[%emt 0:00:13]} axb3 {[%emt 0:00:01]} 20. Bxf4 {[%emt 0:00:02]} exf4 {[%emt 0:00:03]} 21. Rxb3 {[%emt 0:00:03]} Ba6 {[%emt 0:00:06]} 22. Qd3 {[%emt 0:00:07]} Rae8 {[%emt 0:00:08]} 23. a4 {[%emt 0:00:21]} h6 {[%emt 0:00:20]} 24. Nb5 {[%emt 0:00:12]} f5 {[%emt 0:00:40]} 25. exf5 {[%emt 0:00:05]} Rxe1+ {[%emt 0:00:02]} 26. Nxe1 {[%emt 0:00:01]} Rxf5 {[%emt 0:00:02]} 27. Nf3 {[%emt 0:00:09]} Qf7 {[%emt 0:00:43]} 28. Nbd4 {[%emt 0:00:26]} Bxd4 {[%emt 0:00:40]} 29. Qxd4 {[%emt 0:00:03]} g5 {[%emt 0:00:07]} 30. Rb1 {[%emt 0:00:15]} Qg7 {[%emt 0:00:09]} 31. Qd3 {[%emt 0:00:12]} Rf7 {[%emt 0:00:14]} 32. Re1 {[%emt 0:00:05]} Re7 {[%emt 0:00:04]} 33. Rxe7 {[%emt 0:00:06]} Qxe7 {[%emt 0:00:01]} 34. b5 {[%emt 0:00:05]} Bc8 {[%emt 0:00:02]} 35. Qg6+ {[%emt 0:00:03]} Qg7 {[%emt 0:00:01]} 36. Qe8+ {[%emt 0:00:02]} Qf8 {[%emt 0:00:01]} 37. Qc6 {[%emt 0:00:01]} Qd8 {[%emt 0:00:05]} 38. Qa8 {[%emt 0:00:03]} Kf7 {[%emt 0:00:02]} 39. a5 {[%emt 0:00:01]} bxa5 {[%emt 0:00:01]} 40. Qxa5 {[%emt 0:00:01]} Bf5 {[%emt 0:00:02]} 41. Nd4 {[%emt 0:00:03]} Bd7 {[%emt 0:00:03]} 42. Qa7 {[%emt 0:00:03]} Kg6 {[%emt 0:00:02]} 43. Nc6 {[%emt 0:00:02]} Bxc6 {[%emt 0:00:03]} 44. dxc6 {[%emt 0:00:02]} g4 {[%emt 0:00:02]} 45. hxg4 {[%emt 0:00:00]} Qe7 {[%emt 0:00:01]} 46. Qd4 {[%emt 0:00:03]} Qe1+ {[%emt 0:00:02]} 47. Kh2 {[%emt 0:00:01]} Qc1 {[%emt 0:00:03]} 48. b6 {[%emt 0:00:03]} 1-0

[Event "GCT Superbet Blitz Poland 2025"]
[Site "Warsaw"]
[Date "2025.04.29"]
[Round "8"]
[White "Gavrilescu, David"]
[Black "Topalov, Veselin"]
[Result "1-0"]
[ECO "C55"]
[WhiteElo "2554"]
[BlackElo "2717"]
[Annotator "RC"]
[PlyCount "52"]
[EventDate "2025.??.??"]
[EventType "blitz"]
[TimeControl "300+2"]

1. e4 {[%emt 0:00:01]} e5 {[%emt 0:00:01]} 2. Nf3 {[%emt 0:00:02]} Nc6 {[%emt 0:00:01]} 3. Bc4 {[%emt 0:00:02]} Nf6 {[%emt 0:00:03]} 4. d3 {[%emt 0:00:01]} Be7 {[%emt 0:00:02]} 5. O-O {[%emt 0:00:04]} O-O {[%emt 0:00:02]} 6. a4 {[%emt 0:00:02]} d6 {[%emt 0:00:03]} 7. a5 {[%emt 0:00:16]} a6 {[%emt 0:00:22]} 8. h3 {[%emt 0:00:15]} ({RR} 8. c3 Kh8 9. Re1 Ng8 10. d4 f5 11. dxe5 fxe4 12. Rxe4 Rxf3 13. gxf3 Nxe5 14. Rxe5 dxe5 15. Qxd8 Bxd8 16. Be3 Nf6 17. Nd2 Bh3 18. Ne4 Nxe4 19. fxe4 Be7 20. f3 Rf8 21. Kf2 Bh4+ 22. Ke2 Bg2 {Dominguez Perez,L (2947)-Timmermans,M (2754) Chess.com 2024 ½-½}) 8... Be6 {[%emt 0:00:17]} 9. Nc3 {[%emt 0:00:06]} Qd7 {[%emt 0:00:08]} ({RR} 9... Bxc4 10. dxc4 Nd7 11. Nd5 Nc5 12. Re1 Ne6 13. b4 h6 14. Nd2 Bg5 15. Nf1 Ne7 16. Bxg5 Nxg5 17. Nxe7+ Qxe7 18. Ra3 Rad8 19. Rg3 Ne6 20. Ne3 Kh7 21. Qg4 Qg5 22. Qe2 Nf4 23. Qd2 Qf6 24. Rf3 {Cordoba Roa,A (2341)-Triapishko,A (2473) chess.com INT 2024 1-0 (64)}) 10. Bg5 $146 {[%emt 0:00:11]} ({RR} 10. Bd2 Rae8 11. Nd5 Bd8 12. Bb3 h6 13. c3 Na7 14. Ba4 c6 15. c4 Nh7 16. Ne3 Ng5 17. Nxg5 Bxg5 18. b4 g6 19. Nd5 f5 20. exf5 Bxd5 21. cxd5 Rxf5 22. d4 exd4 23. Bc2 Nb5 24. Bxf5 Qxf5 {Milliet,S (2366)-Swati,G (2320) Dresden 2008 1-0 (40)}) ({RR} 10. Re1 Rad8 11. Bg5 h6 12. Bxf6 Bxf6 13. Nd5 Bg5 14. Nxg5 hxg5 15. Qd2 f6 16. Qc3 Bf7 17. Ne3 Nd4 18. Qd2 c6 19. c3 Ne6 20. b4 Nf4 21. Nf5 d5 22. Bb3 dxe4 23. Bxf7+ Rxf7 24. Rxe4 Qxf5 {Gao,R (1938)-Yedidia,D (2056) chess.com INT 2023 0-1}) ({RR} 10. Re1 Rad8 11. Bg5 h6 12. Bxf6 Bxf6 13. Nd5 Bg5 14. Nxg5 hxg5 15. Qd2 f6 16. Qc3 Bf7 17. Ne3 Nd4 18. Qd2 c6 19. c3 Ne6 20. b4 Nf4 21. Nf5 d5 22. Bb3 dxe4 23. Bxf7+ Rxf7 24. Rxe4 Qxf5 {Gao,R (1938)-Yedidia,D (2056) chess.com INT 2023 0-1}) 10... Rae8 {[%emt 0:00:19]} 11. Nd5 {[%emt 0:00:36]} Bxd5 {[%emt 0:00:13]} 12. exd5 {[%emt 0:00:02]} Nb8 {[%emt 0:00:19]} 13. Bb3 {[%emt 0:00:12]} h6 {[%emt 0:00:29]} 14. Be3 {[%emt 0:00:17]} c6 {[%emt 0:00:10]} 15. dxc6 {[%emt 0:00:17]} Nxc6 {[%emt 0:00:01]} 16. c3 {[%emt 0:00:11]} Bd8 {[%emt 0:00:06]} 17. Ba4 {[%emt 0:00:06]} Nd5 {[%emt 0:00:49]} 18. Bd2 {[%emt 0:00:11]} Bf6 {[%emt 0:01:28]} 19. Re1 {[%emt 0:00:08]} Rc8 {[%emt 0:00:26]} 20. Qb3 {[%emt 0:00:44]} Nde7 {[%emt 0:00:04]} 21. d4 {[%emt 0:00:27]} exd4 {[%emt 0:00:04]} 22. cxd4 {[%emt 0:00:01]} d5 {[%emt 0:00:01]} 23. Rad1 {[%emt 0:00:07]} Qc7 {[%emt 0:00:07]} 24. Ne5 {[%emt 0:00:41]} Nxd4 {[%emt 0:00:03]} 25. Qb6 {[%emt 0:00:24]} Qxb6 {[%emt 0:00:07]} 26. axb6 {[%emt 0:00:01]} Rfd8 {[%emt 0:00:06]} 1-0